fUST/lending_fUST_20250729
["ID","MTS","AMOUNT","RATE_DAILY","PERIOD"]
[375847588,1753759839432,-460.0,0.00019178,2]
[375847590,1753759839441,-460.0,0.00019178,2]
[375847592,1753759839452,-460.0,0.00019178,2]
[375847594,1753759839463,-460.0,0.00019178,2]
[375847596,1753759839473,-460.0,0.00019178,2]
[375847598,1753759839487,-460.0,0.00019178,2]
[375847600,1753759839497,-460.0,0.00019178,2]
[375847602,1753759839507,-460.0,0.00019178,2]
[375847604,1753759839516,-460.0,0.00019178,2]
[375847606,1753759839526,-460.0,0.00019178,2]
[375847608,1753759839535,-460.0,0.00019178,2]
[375847610,1753759839546,-360.57196106,0.00019178,2]
[375847612,1753759839556,-460.0,0.00019178,2]
[375847614,1753759839565,-350.52576239,0.00019178,2]
[375847616,1753759839575,-460.0,0.00019178,2]
[375847618,1753759839585,-460.0,0.00019178,2]
[375847620,1753759839595,-460.0,0.00019178,2]
[375847622,1753759839604,-460.0,0.00019178,2]
[375847624,1753759839614,-460.0,0.00019178,2]
[375847626,1753759839623,-460.0,0.00019178,2]
[375847628,1753759839632,-460.0,0.00019178,2]
[375847630,1753759839642,-460.0,0.00019178,2]
[375847632,1753759839651,-970.82,0.00019178,2]
[375847634,1753759839661,-460.0,0.00019178,2]
[375847636,1753759839670,-460.0,0.00019178,2]
[375847638,1753759839680,-460.0,0.00019178,2]
[375847639,1753759839690,-460.0,0.00019178,2]
[375847641,1753759839700,-460.0,0.00019178,2]
[375847643,1753759839709,-460.0,0.00019178,2]
[375847645,1753759839719,-523.58,0.00019178,2]
[375847647,1753759839729,-460.0,0.00019178,2]
[375847649,1753759839741,-460.0,0.00019178,2]
[375847651,1753759839751,-494.94,0.00019178,2]
[375847653,1753759839761,-460.0,0.00019178,2]
[375847655,1753759839770,-460.0,0.00019178,2]
[375847657,1753759839780,-460.0,0.00019178,2]
[375847659,1753759839789,-460.0,0.00019178,2]
[375847661,1753759839799,-460.0,0.00019178,2]
[375847663,1753759839809,-458.44885623,0.00019178,2]
[375847665,1753759839818,-460.0,0.00019178,2]
[375847667,1753759839827,-1600.49,0.00019178,2]
[375847669,1753759839837,-498.86,0.00019178,2]
[375847671,1753759839846,-500.0,0.00019178,2]
[375847673,1753759839856,-500.0,0.00019178,2]
[375847675,1753759839866,-500.0,0.00019178,2]
[375847677,1753759839875,-500.0,0.00019178,2]
[375847679,1753759839885,-460.0,0.00019178,2]
[375847681,1753759839895,-266.66,0.00019178,2]
[375847683,1753759839904,-460.0,0.00019178,2]
[375847685,1753759839913,-1073.91,0.00019178,2]
[375847687,1753759839924,-511.40957941,0.00019178,2]
[375847689,1753759839933,-173.35605318,0.00019178,2]
[375847691,1753759839943,-460.0,0.00019178,2]
[375847693,1753759839952,-460.0,0.00019178,2]
[375847695,1753759839962,-531.0,0.00019178,2]
[375847696,1753759839971,-460.0,0.00019178,2]
[375847698,1753759839980,-460.0,0.00019178,2]
[375847700,1753759839992,-899.66,0.00019178,2]
[375847702,1753759840001,-460.0,0.00019178,2]
[375847704,1753759840017,-460.0,0.00019178,2]
[375847706,1753759840026,-460.0,0.00019178,2]
[375847708,1753759840038,-460.0,0.00019178,2]
[375847710,1753759840047,-460.0,0.00019178,2]
[375847712,1753759840057,-460.0,0.00019178,2]
[375847714,1753759840066,-460.0,0.00019178,2]
[375847716,1753759840076,-460.0,0.00019178,2]
[375847718,1753759840086,-460.0,0.00019178,2]
[375847720,1753759840095,-460.0,0.00019178,2]
[375847722,1753759840104,-460.0,0.00019178,2]
[375847724,1753759840114,-460.0,0.00019178,2]
[375847726,1753759840124,-978.46,0.00019178,2]
[375847729,1753759840144,-460.0,0.00019178,2]
[375847731,1753759840156,-460.0,0.00019178,2]
[375847733,1753759840166,-460.0,0.00019178,2]
[375847735,1753759840176,-460.0,0.00019178,2]
[375847737,1753759840186,-460.0,0.00019178,2]
[375847739,1753759840195,-460.0,0.00019178,2]
[375847741,1753759840205,-473.11,0.00019178,2]
[375847743,1753759840215,-504.44,0.00019178,2]
[375847745,1753759840225,-3607.21,0.00019178,2]
[375847747,1753759840235,-2881.35,0.00019178,2]
[375847749,1753759840244,-460.0,0.00019178,2]
[375847751,1753759840253,-460.0,0.00019178,2]
[375847753,1753759840266,-460.0,0.00019178,2]
[375847755,1753759840275,-1159.46,0.00019178,2]
[375847757,1753759840285,-460.0,0.00019178,2]
[375847759,1753759840295,-460.0,0.00019178,2]
[375847760,1753759840304,-460.0,0.00019178,2]
[375847761,1753759840314,-460.0,0.00019178,2]
[375847764,1753759840323,-460.0,0.00019178,2]
[375847767,1753759840333,-460.0,0.00019178,2]
[375847770,1753759840343,-460.0,0.00019178,2]
[375847773,1753759840352,-464.9,0.00019178,2]
[375847775,1753759840361,-514.74,0.00019178,2]
[375847776,1753759840370,-560.09,0.00019178,2]
[375847778,1753759840380,-1492.62,0.00019178,2]
[375847780,1753759840389,-1403.11,0.00019178,2]
[375847782,1753759840398,-460.0,0.00019178,2]
[375847784,1753759840409,-187.2576027,0.00019178,2]
[375847786,1753759840419,-460.0,0.00019178,2]
[375847788,1753759840428,-1547.7,0.00019178,2]
[375847790,1753759840438,-695.07,0.00019178,2]
[375847792,1753759840447,-6202.90737477,0.00019178,2]
[375847794,1753759840457,-188.093072,0.00019178,2]
[375847796,1753759840466,-200.0,0.00019255,15]
[375847798,1753759840475,-200.0,0.00019255,15]
[375847800,1753759840486,-200.0,0.00019255,15]
[375847802,1753759840497,-200.0,0.00019255,15]
[375847803,1753759840506,-232.92,0.00019442,3]
[375847805,1753759840515,-698.76,0.00019442,3]
[375847807,1753759840524,-460.0,0.00019452,2]
[375847809,1753759840534,-460.0,0.00019452,2]
[375847811,1753759840544,-460.0,0.00019452,2]
[375847813,1753759840554,-460.0,0.00019452,2]
[375847815,1753759840563,-460.0,0.00019452,2]
[375847817,1753759840573,-466.56677393,0.00019452,2]
[375847819,1753759840583,-460.0,0.00019452,2]
[375847821,1753759840593,-460.0,0.00019452,2]
[375847823,1753759840603,-898.48,0.00019452,2]
[375847825,1753759840612,-460.0,0.00019452,2]
[375847827,1753759840622,-460.0,0.00019452,2]
[375847829,1753759840631,-460.0,0.00019452,2]
[375847831,1753759840640,-460.0,0.00019452,2]
[375847833,1753759840649,-460.0,0.00019452,2]
[375847834,1753759840659,-460.0,0.00019452,2]
[375847836,1753759840668,-460.0,0.00019452,2]
[375847838,1753759840678,-471.11545319,0.00019452,2]
[375847840,1753759840687,-902.02,0.00019452,2]
[375847842,1753759840698,-460.0,0.00019452,2]
[375847844,1753759840707,-460.0,0.00019452,2]
[375847846,1753759840717,-460.0,0.00019452,2]
[375847849,1753759840729,-460.0,0.00019452,2]
[375847851,1753759840743,-460.0,0.00019452,2]
[375847853,1753759840756,-509.17402009,0.00019452,2]
[375847855,1753759840768,-460.0,0.00019452,2]
[375847857,1753759840780,-460.0,0.00019452,2]
[375847859,1753759840793,-460.0,0.00019452,2]
[375847861,1753759840805,-460.0,0.00019452,2]
[375847863,1753759840815,-460.0,0.00019452,2]
[375847865,1753759840826,-460.0,0.00019452,2]
[375847868,1753759840838,-460.0,0.00019452,2]
[375847870,1753759840849,-460.0,0.00019452,2]
[375847872,1753759840862,-460.0,0.00019452,2]
[375847874,1753759840874,-478.4309536,0.00019452,2]
[375847876,1753759840885,-460.0,0.00019452,2]
[375847878,1753759840896,-460.0,0.00019452,2]
[375847880,1753759840908,-460.0,0.00019452,2]
[375847883,1753759840920,-460.0,0.00019452,2]
[375847885,1753759840931,-460.0,0.00019452,2]
[375847887,1753759840943,-460.0,0.00019452,2]
[375847889,1753759840955,-970.82,0.00019452,2]
[375847891,1753759840966,-460.0,0.00019452,2]
[375847893,1753759840977,-481.84716115,0.00019452,2]
[375847895,1753759840990,-460.0,0.00019452,2]
[375847897,1753759841003,-460.0,0.00019452,2]
[375847900,1753759841015,-460.0,0.00019452,2]
[375847902,1753759841027,-523.58,0.00019452,2]
[375847904,1753759841039,-460.0,0.00019452,2]
[375847906,1753759841051,-460.0,0.00019452,2]
[375847908,1753759841062,-494.94,0.00019452,2]
[375847910,1753759841074,-460.0,0.00019452,2]
[375847912,1753759841084,-460.0,0.00019452,2]
[375847914,1753759841096,-460.0,0.00019452,2]
[375847916,1753759841108,-460.0,0.00019452,2]
[375847919,1753759841119,-1600.49,0.00019452,2]
[375847921,1753759841130,-498.86,0.00019452,2]
[375847923,1753759841142,-460.0,0.00019452,2]
[375847925,1753759841154,-460.0,0.00019452,2]
[375847927,1753759841173,-1073.91,0.00019452,2]
[375847929,1753759841185,-460.0,0.00019452,2]
[375847931,1753759841196,-460.0,0.00019452,2]
[375847933,1753759841209,-531.0,0.00019452,2]
[375847935,1753759841220,-467.64182818,0.00019452,2]
[375847937,1753759841233,-279.38034697,0.00019452,2]
[375847939,1753759841248,-899.66,0.00019452,2]
[375847941,1753759841259,-460.0,0.00019452,2]
[375847943,1753759841272,-460.0,0.00019452,2]
[375847945,1753759841283,-460.0,0.00019452,2]
[375847947,1753759841294,-460.0,0.00019452,2]
[375847949,1753759841307,-460.0,0.00019452,2]
[375847951,1753759841318,-460.0,0.00019452,2]
[375847953,1753759841328,-460.0,0.00019452,2]
[375847955,1753759841341,-460.0,0.00019452,2]
[375847957,1753759841353,-460.0,0.00019452,2]
[375847960,1753759841364,-460.0,0.00019452,2]
[375847962,1753759841376,-460.0,0.00019452,2]
[375847964,1753759841388,-978.46,0.00019452,2]
[375847966,1753759841400,-460.0,0.00019452,2]
[375847968,1753759841411,-460.0,0.00019452,2]
[375847970,1753759841422,-460.0,0.00019452,2]
[375847972,1753759841434,-460.0,0.00019452,2]
[375847974,1753759841446,-471.62233797,0.00019452,2]
[375847977,1753759841459,-473.11,0.00019452,2]
[375847979,1753759841471,-504.44,0.00019452,2]
[375847981,1753759841483,-3607.21,0.00019452,2]
[375847983,1753759841495,-2881.35,0.00019452,2]
[375847985,1753759841506,-536.44884136,0.00019452,2]
[375847987,1753759841519,-460.0,0.00019452,2]
[375847989,1753759841530,-1159.46,0.00019452,2]
[375847991,1753759841540,-460.0,0.00019452,2]
[375847993,1753759841550,-460.0,0.00019452,2]
[375847995,1753759841560,-460.0,0.00019452,2]
[375847998,1753759841571,-460.0,0.00019452,2]
[375848000,1753759841581,-460.0,0.00019452,2]
[375848002,1753759841591,-460.0,0.00019452,2]
[375848004,1753759841603,-460.0,0.00019452,2]
[375848006,1753759841614,-464.9,0.00019452,2]
[375848008,1753759841625,-514.74,0.00019452,2]
[375848010,1753759841637,-560.09,0.00019452,2]
[375848012,1753759841650,-1492.62,0.00019452,2]
[375848014,1753759841662,-1403.11,0.00019452,2]
[375848016,1753759841674,-460.0,0.00019452,2]
[375848018,1753759841685,-460.0,0.00019452,2]
[375848020,1753759841695,-1547.7,0.00019452,2]
[375848022,1753759841706,-508.11239632,0.00019473,2]
[375848024,1753759841718,-460.0,0.00019726,2]
[375848026,1753759841728,-460.0,0.00019726,2]
[375848028,1753759841740,-460.0,0.00019726,2]
[375848031,1753759841752,-460.0,0.00019726,2]
[375848033,1753759841764,-460.0,0.00019726,2]
[375848035,1753759841775,-460.0,0.00019726,2]
[375848037,1753759841786,-898.48,0.00019726,2]
[375848039,1753759841796,-460.0,0.00019726,2]
[375848041,1753759841808,-460.0,0.00019726,2]
[375848043,1753759841818,-460.0,0.00019726,2]
[375848045,1753759841828,-460.0,0.00019726,2]
[375848047,1753759841839,-460.0,0.00019726,2]
[375848049,1753759841850,-460.0,0.00019726,2]
[375848051,1753759841861,-902.02,0.00019726,2]
[375848054,1753759841873,-460.0,0.00019726,2]
[375848056,1753759841884,-460.0,0.00019726,2]
[375848058,1753759841895,-460.0,0.00019726,2]
[375848060,1753759841906,-460.0,0.00019726,2]
[375848062,1753759841919,-460.0,0.00019726,2]
[375848064,1753759841930,-460.0,0.00019726,2]
[375848066,1753759841941,-460.0,0.00019726,2]
[375848068,1753759841952,-460.0,0.00019726,2]
[375848070,1753759841962,-460.0,0.00019726,2]
[375848072,1753759841973,-406.28697748,0.00019726,2]
[375848074,1753759841984,-460.0,0.00019726,2]
[375848076,1753759841994,-460.0,0.00019726,2]
[375848078,1753759842005,-460.0,0.00019726,2]
[375848080,1753759842015,-460.0,0.00019726,2]
[375848082,1753759842026,-460.0,0.00019726,2]
[375848084,1753759842036,-460.0,0.00019726,2]
[375848086,1753759842047,-970.82,0.00019726,2]
[375848088,1753759842059,-460.0,0.00019726,2]
[375848091,1753759842070,-460.0,0.00019726,2]
[375848093,1753759842081,-460.0,0.00019726,2]
[375848095,1753759842092,-523.58,0.00019726,2]
[375848097,1753759842102,-460.0,0.00019726,2]
[375848099,1753759842113,-494.94,0.00019726,2]
[375848101,1753759842123,-460.0,0.00019726,2]
[375848103,1753759842134,-460.0,0.00019726,2]
[375848105,1753759842144,-284.59094366,0.00019726,2]
[375848107,1753759842155,-460.0,0.00019726,2]
[375848109,1753759842166,-1600.49,0.00019726,2]
[375848111,1753759842177,-498.86,0.00019726,2]
[375848113,1753759842187,-460.0,0.00019726,2]
[375848115,1753759842198,-460.0,0.00019726,2]
[375848117,1753759842209,-1073.91,0.00019726,2]
[375848120,1753759842219,-460.0,0.00019726,2]
[375848122,1753759842230,-460.0,0.00019726,2]
[375848124,1753759842242,-531.0,0.00019726,2]
[375848126,1753759842253,-899.66,0.00019726,2]
[375848128,1753759842266,-460.0,0.00019726,2]
[375848130,1753759842277,-460.0,0.00019726,2]
[375848132,1753759842287,-460.0,0.00019726,2]
[375848134,1753759842298,-460.0,0.00019726,2]
[375848136,1753759842310,-460.0,0.00019726,2]
[375848138,1753759842320,-460.0,0.00019726,2]
[375848140,1753759842331,-460.0,0.00019726,2]
[375848142,1753759842343,-460.0,0.00019726,2]
[375848144,1753759842354,-460.0,0.00019726,2]
[375848146,1753759842365,-460.0,0.00019726,2]
[375848148,1753759842375,-460.0,0.00019726,2]
[375848151,1753759842386,-978.46,0.00019726,2]
[375848153,1753759842396,-460.0,0.00019726,2]
[375848155,1753759842407,-460.0,0.00019726,2]
[375848157,1753759842418,-460.0,0.00019726,2]
[375848159,1753759842430,-460.0,0.00019726,2]
[375848161,1753759842440,-473.11,0.00019726,2]
[375848163,1753759842451,-504.44,0.00019726,2]
[375848165,1753759842462,-3607.21,0.00019726,2]
[375848167,1753759842473,-2881.35,0.00019726,2]
[375848170,1753759842485,-1159.46,0.00019726,2]
[375848172,1753759842497,-460.0,0.00019726,2]
[375848174,1753759842508,-460.0,0.00019726,2]
[375848176,1753759842520,-460.0,0.00019726,2]
[375848178,1753759842531,-460.0,0.00019726,2]
[375848180,1753759842542,-464.9,0.00019726,2]
[375848182,1753759842552,-514.74,0.00019726,2]
[375848184,1753759842563,-560.09,0.00019726,2]
[375848186,1753759842575,-1492.62,0.00019726,2]
[375848188,1753759842586,-1403.11,0.00019726,2]
[375848190,1753759842596,-460.0,0.00019726,2]
[375848192,1753759842607,-460.0,0.00019726,2]
[375848194,1753759842617,-1547.7,0.00019726,2]
[375848197,1753759842628,-500.0,0.00019787,2]
[375848199,1753759842639,-1000.0,0.000198,2]
[375848201,1753759842653,-460.0,0.0002,2]
[375848203,1753759842664,-606.55167743,0.0002,2]
[375848205,1753759842675,-465.49789933,0.0002,2]
[375848207,1753759842686,-460.0,0.0002,2]
[375848209,1753759842698,-460.0,0.0002,2]
[375848211,1753759842708,-460.0,0.0002,2]
[375848213,1753759842719,-898.48,0.0002,2]
[375848216,1753759842730,-460.0,0.0002,2]
[375848218,1753759842743,-460.0,0.0002,2]
[375848220,1753759842753,-460.0,0.0002,2]
[375848222,1753759842763,-460.0,0.0002,2]
[375848224,1753759842775,-460.0,0.0002,2]
[375848226,1753759842785,-460.0,0.0002,2]
[375848228,1753759842796,-902.02,0.0002,2]
[375848230,1753759842806,-460.0,0.0002,2]
[375848233,1753759842818,-460.0,0.0002,2]
[375848235,1753759842829,-460.0,0.0002,2]
[375848261,1753759843088,-460.0,0.0002,2]
[375848263,1753759843101,-460.0,0.0002,2]
[375848265,1753759843110,-460.0,0.0002,2]
[375848267,1753759843120,-460.0,0.0002,2]
[375848269,1753759843130,-460.0,0.0002,2]
[375848271,1753759843139,-460.0,0.0002,2]
[375848273,1753759843148,-460.0,0.0002,2]
[375848275,1753759843158,-599.26430333,0.0002,2]
[375848277,1753759843167,-460.0,0.0002,2]
[375848279,1753759843176,-460.0,0.0002,2]
[375848280,1753759843186,-970.82,0.0002,2]
[375848281,1753759843195,-460.0,0.0002,2]
[375848282,1753759843204,-460.0,0.0002,2]
[375848283,1753759843213,-460.0,0.0002,2]
[375848285,1753759843223,-523.58,0.0002,2]
[375848287,1753759843234,-460.0,0.0002,2]
[375848288,1753759843242,-494.94,0.0002,2]
[375848289,1753759843251,-460.0,0.0002,2]
[375848290,1753759843261,-460.0,0.0002,2]
[375848291,1753759843273,-460.0,0.0002,2]
[375848292,1753759843282,-1600.49,0.0002,2]
[375848293,1753759843292,-498.86,0.0002,2]
[375848294,1753759843302,-460.0,0.0002,2]
[375848295,1753759843312,-460.0,0.0002,2]
[375848296,1753759843322,-1073.91,0.0002,2]
[375848297,1753759843331,-460.0,0.0002,2]
[375848298,1753759843342,-460.0,0.0002,2]
[375848299,1753759843351,-531.0,0.0002,2]
[375848300,1753759843360,-899.66,0.0002,2]
[375848301,1753759843369,-460.0,0.0002,2]
[375848302,1753759843378,-460.0,0.0002,2]
[375848303,1753759843387,-460.0,0.0002,2]
[375848304,1753759843396,-7800.0,0.0002,7]
[375848305,1753759843405,-460.0,0.0002,2]
[375848306,1753759843414,-460.0,0.0002,2]
[375848307,1753759843424,-8859.74923358,0.0002,2]
[375848308,1753759843433,-460.0,0.0002,2]
[375848309,1753759843442,-460.0,0.0002,2]
[375848310,1753759843451,-460.0,0.0002,2]
[375848311,1753759843460,-460.0,0.0002,2]
[375848313,1753759843469,-151.29235935,0.0002,2]
[375848315,1753759843479,-978.46,0.0002,2]
[375848316,1753759843488,-460.0,0.0002,2]
[375848318,1753759843498,-460.0,0.0002,2]
[375848320,1753759843507,-460.0,0.0002,2]
[375848322,1753759843516,-473.11,0.0002,2]
[375848324,1753759843525,-504.44,0.0002,2]
[375848326,1753759843535,-3607.21,0.0002,2]
[375848328,1753759843545,-2881.35,0.0002,2]
[375848330,1753759843555,-1159.46,0.0002,2]
[375848332,1753759843564,-460.0,0.0002,2]
[375848334,1753759843574,-460.0,0.0002,2]
[375848336,1753759843583,-460.0,0.0002,2]
[375848338,1753759843592,-460.0,0.0002,2]
[375848340,1753759843602,-514.74,0.0002,2]
[375848342,1753759843611,-464.9,0.0002,2]
[375848344,1753759843620,-560.09,0.0002,2]
[375848346,1753759843629,-1492.62,0.0002,2]
[375848348,1753759843640,-1403.11,0.0002,2]
[375848350,1753759843650,-460.0,0.0002,2]
[375848352,1753759843659,-460.0,0.0002,2]
[375848354,1753759843668,-1547.7,0.0002,2]
[375848356,1753759843677,-2511.0205882,0.00020026,2]
[375848369,1753759843799,-21299.55860222,0.00020026,2]
[375848370,1753759843808,-151.0,0.00020026,2]
[375848372,1753759843817,-151.0,0.00020026,2]
[375848374,1753759843826,-151.0,0.00020026,2]
[375848376,1753759843835,-151.0,0.00020026,2]
[375848378,1753759843845,-151.0,0.00020026,2]
[375848380,1753759843854,-3236.33533662,0.00020026,2]
[375848382,1753759843864,-151.0,0.00020026,2]
[375848384,1753759843874,-151.0,0.00020026,2]
[375848386,1753759843883,-151.0,0.00020026,2]
[375848388,1753759843893,-151.0,0.00020026,2]
[375848390,1753759843902,-151.0,0.00020026,2]
[375848392,1753759843912,-158.77995048,0.00020026,2]
[375848394,1753759843921,-163.62022234,0.00020039,2]
[375848396,1753759843930,-160.0,0.00020126,2]
[375848398,1753759843939,-160.0,0.00020126,2]
[375848400,1753759843948,-160.0,0.00020126,2]
[375848402,1753759843958,-841.06558547,0.00020126,2]
[375848404,1753759843967,-160.0,0.00020126,2]
[375848406,1753759843976,-160.0,0.00020126,2]
[375848408,1753759843986,-214.91980558,0.00020126,2]
[375848410,1753759843996,-216.1031716,0.00020126,2]
[375848411,1753759844004,-160.0,0.00020126,2]
[375848413,1753759844014,-12637.12721421,0.00020126,2]
[375848415,1753759844023,-312.16666667,0.00020126,2]
[375848417,1753759844032,-454.69923987,0.00020126,2]
[375848419,1753759844042,-160.0,0.00020126,2]
[375848421,1753759844051,-231.39372452,0.00020126,2]
[375848423,1753759844061,-160.0,0.00020126,2]
[375848425,1753759844070,-2584.94818652,0.00020173,2]
[375848427,1753759844080,-495.46640796,0.00020173,2]
[375848429,1753759844089,-160.0,0.00020264,2]
[375848431,1753759844098,-271.92421771,0.00020273,2]
[375848433,1753759844107,-460.0,0.00020273,2]
[375848435,1753759844117,-460.0,0.00020273,2]
[375848437,1753759844127,-898.48,0.00020273,2]
[375848438,1753759844136,-460.0,0.00020273,2]
[375848440,1753759844146,-460.0,0.00020273,2]
[375848442,1753759844155,-460.0,0.00020273,2]
[375848444,1753759844166,-460.0,0.00020273,2]
[375848446,1753759844175,-902.02,0.00020273,2]
[375848448,1753759844185,-460.0,0.00020273,2]
[375848450,1753759844194,-460.0,0.00020273,2]
[375848452,1753759844203,-460.0,0.00020273,2]
[375848454,1753759844213,-460.0,0.00020273,2]
[375848456,1753759844222,-460.0,0.00020273,2]
[375848458,1753759844231,-460.0,0.00020273,2]
[375848460,1753759844243,-460.0,0.00020273,2]
[375848462,1753759844252,-460.0,0.00020273,2]
[375848464,1753759844263,-460.0,0.00020273,2]
[375848466,1753759844274,-970.82,0.00020273,2]
[375848468,1753759844284,-460.0,0.00020273,2]
[375848470,1753759844294,-460.0,0.00020273,2]
[375848471,1753759844303,-460.0,0.00020273,2]
[375848473,1753759844313,-523.58,0.00020273,2]
[375848475,1753759844323,-494.94,0.00020273,2]
[375848477,1753759844332,-460.0,0.00020273,2]
[375848479,1753759844342,-460.0,0.00020273,2]
[375848481,1753759844352,-1600.49,0.00020273,2]
[375848483,1753759844361,-498.86,0.00020273,2]
[375848485,1753759844370,-460.0,0.00020273,2]
[375848487,1753759844380,-460.0,0.00020273,2]
[375848489,1753759844389,-1073.91,0.00020273,2]
[375848491,1753759844399,-460.0,0.00020273,2]
[375848493,1753759844408,-460.0,0.00020273,2]
[375848495,1753759844417,-531.0,0.00020273,2]
[375848497,1753759844427,-899.66,0.00020273,2]
[375848499,1753759844436,-460.0,0.00020273,2]
[375848501,1753759844446,-460.0,0.00020273,2]
[375848502,1753759844455,-460.0,0.00020273,2]
[375848504,1753759844466,-460.0,0.00020273,2]
[375848506,1753759844475,-460.0,0.00020273,2]
[375848508,1753759844484,-460.0,0.00020273,2]
[375848510,1753759844496,-460.0,0.00020273,2]
[375848512,1753759844506,-460.0,0.00020273,2]
[375848514,1753759844515,-978.46,0.00020273,2]
[375848516,1753759844525,-460.0,0.00020273,2]
[375848518,1753759844534,-460.0,0.00020273,2]
[375848520,1753759844545,-460.0,0.00020273,2]
[375848522,1753759844554,-473.11,0.00020273,2]
[375848524,1753759844563,-504.44,0.00020273,2]
[375848526,1753759844572,-3607.21,0.00020273,2]
[375848528,1753759844582,-2881.35,0.00020273,2]
[375848530,1753759844591,-1159.46,0.00020273,2]
[375848532,1753759844600,-460.0,0.00020273,2]
[375848534,1753759844609,-460.0,0.00020273,2]
[375848536,1753759844622,-460.0,0.00020273,2]
[375848538,1753759844631,-460.0,0.00020273,2]
[375848540,1753759844640,-514.74,0.00020273,2]
[375848542,1753759844649,-464.9,0.00020273,2]
[375848544,1753759844658,-560.09,0.00020273,2]
[375848546,1753759844667,-1403.11,0.00020273,2]
[375848548,1753759844677,-1492.62,0.00020273,2]
[375848550,1753759844686,-460.0,0.00020273,2]
[375848552,1753759844696,-460.0,0.00020273,2]
[375848553,1753759844705,-1547.7,0.00020273,2]
[375848555,1753759844715,-173.784,0.00020302,2]
[375848557,1753759844724,-1000.0,0.00020335,2]
[375848559,1753759844733,-460.0,0.00020547,2]
[375848561,1753759844744,-460.0,0.00020547,2]
[375848563,1753759844754,-898.48,0.00020547,2]
[375848565,1753759844763,-460.0,0.00020547,2]
[375848567,1753759844772,-460.0,0.00020547,2]
[375848569,1753759844781,-460.0,0.00020547,2]
[375848571,1753759844790,-460.0,0.00020547,2]
[375848573,1753759844799,-902.02,0.00020547,2]
[375848575,1753759844809,-460.0,0.00020547,2]
[375848577,1753759844818,-460.0,0.00020547,2]
[375848579,1753759844827,-460.0,0.00020547,2]
[375848581,1753759844837,-460.0,0.00020547,2]
[375848583,1753759844846,-460.0,0.00020547,2]
[375848584,1753759844855,-460.0,0.00020547,2]
[375848586,1753759844865,-460.0,0.00020547,2]
[375848588,1753759844874,-460.0,0.00020547,2]
[375848590,1753759844883,-460.0,0.00020547,2]
[375848592,1753759844893,-970.82,0.00020547,2]
[375848594,1753759844902,-460.0,0.00020547,2]
[375848596,1753759844913,-460.0,0.00020547,2]
[375848598,1753759844922,-460.0,0.00020547,2]
[375848600,1753759844931,-523.58,0.00020547,2]